fUST/lending_fUST_20240905
["ID","MTS","AMOUNT","RATE_DAILY","PERIOD"]
[337225600,1725511860592,-500.0,0.00022191,2]
[337225601,1725511860601,-879.2,0.00022191,2]
[337225602,1725511860611,-500.0,0.00022191,2]
[337225603,1725511860621,-489.76568392,0.00022191,2]
[337225604,1725511860633,-500.0,0.00022191,2]
[337225605,1725511860643,-500.0,0.00022191,2]
[337225606,1725511860655,-510.20155894,0.00022191,2]
[337225607,1725511860666,-2218.89,0.00022191,2]
[337225608,1725511860676,-1213.88,0.00022191,2]
[337225609,1725511860686,-729.46,0.000222,7]
[337225610,1725511860697,-302.21432435,0.0002222,2]
[337225611,1725511860707,-160.0,0.00022233,8]
[337225612,1725511860720,-221.39245082,0.00022233,5]
[337225613,1725511860730,-443.9154903,0.00022278,2]
[337225614,1725511860740,-153.0,0.00022278,2]
[337225615,1725511860751,-153.0,0.00022278,2]
[337225616,1725511860761,-153.0,0.00022278,2]
[337225617,1725511860772,-208.0725932,0.00022278,2]
[337225618,1725511860785,-153.0,0.00022278,2]
[337225619,1725511860797,-416.0110196,0.00022278,2]
[337225620,1725511860810,-153.0,0.00022278,2]
[337225621,1725511860821,-177.6880762,0.00022278,2]
[337225622,1725511860832,-208.0725932,0.00022278,2]
[337225623,1725511860847,-153.0,0.00022278,2]
[337225624,1725511861078,-153.0,0.00022278,2]
[337225625,1725511861089,-208.0725932,0.00022278,2]
[337225626,1725511861100,-208.0725932,0.00022278,2]
[337225627,1725511861113,-153.0,0.00022278,2]
[337225628,1725511861123,-207.6488483,0.00022278,2]
[337225629,1725511861135,-1316.26439004,0.000223,2]
[337225630,1725511861146,-500.0,0.00022316,8]
[337225631,1725511861157,-500.0,0.0002233,8]
[337225632,1725511861166,-207.8512623,0.00022377,2]
[337225633,1725511861179,-514.0,0.000224,2]
[337225634,1725511861190,-501.11776053,0.00022421,2]
[337225635,1725511861201,-1000.0,0.00022421,2]
[337225636,1725511861212,-888.03093416,0.00022421,2]
[337225637,1725511861222,-1000.0,0.00022421,2]
[337225638,1725511861233,-302.21432435,0.0002244,2]
[337225639,1725511861244,-500.0,0.00022465,2]
[337225640,1725511861255,-500.0,0.00022465,2]
[337225641,1725511861266,-528.15422306,0.00022465,2]
[337225642,1725511861278,-507.19244493,0.00022465,2]
[337225643,1725511861289,-500.0,0.00022465,2]
[337225644,1725511861300,-500.0,0.00022465,2]
[337225645,1725511861311,-500.0,0.00022465,2]
[337225646,1725511861321,-500.0,0.00022465,2]
[337225647,1725511861332,-370.12591483,0.00022465,2]
[337225648,1725511861342,-194.65257798,0.00022465,2]
[337225649,1725511861353,-500.0,0.00022465,2]
[337225650,1725511861363,-500.0,0.00022465,2]
[337225651,1725511861373,-500.0,0.00022465,2]
[337225652,1725511861384,-500.0,0.00022465,2]
[337225653,1725511861395,-500.0,0.00022465,2]
[337225654,1725511861404,-1383.44,0.00022465,2]
[337225655,1725511861416,-500.0,0.00022465,2]
[337225656,1725511861428,-500.0,0.00022465,2]
[337225657,1725511861438,-500.0,0.00022465,2]
[337225658,1725511861448,-500.0,0.00022465,2]
[337225659,1725511861458,-500.0,0.00022465,2]
[337225660,1725511861467,-500.0,0.00022465,2]
[337225661,1725511861476,-517.65753221,0.00022465,2]
[337225662,1725511861486,-500.0,0.00022465,2]
[337225663,1725511861496,-500.0,0.00022465,2]
[337225664,1725511861505,-500.0,0.00022465,2]
[337225665,1725511861514,-500.0,0.00022465,2]
[337225666,1725511861524,-500.0,0.00022465,2]
[337225667,1725511861534,-500.0,0.00022465,2]
[337225668,1725511861543,-500.0,0.00022465,2]
[337225669,1725511861553,-646.86,0.00022465,2]
[337225670,1725511861562,-500.0,0.00022465,2]
[337225671,1725511861571,-267.31207294,0.00022465,2]
[337225672,1725511861581,-920.43,0.00022465,2]
[337225673,1725511861590,-500.0,0.00022465,2]
[337225674,1725511861599,-500.0,0.00022465,2]
[337225675,1725511861610,-500.0,0.00022465,2]
[337225676,1725511861621,-500.0,0.00022465,2]
[337225677,1725511861632,-500.0,0.00022465,2]
[337225678,1725511861643,-530.47,0.00022465,2]
[337225679,1725511861652,-500.0,0.00022465,2]
[337225680,1725511861663,-500.0,0.00022465,2]
[337225681,1725511861674,-500.0,0.00022465,2]
[337225682,1725511861686,-500.0,0.00022465,2]
[337225683,1725511861697,-544.76,0.00022465,2]
[337225684,1725511861707,-628.95,0.00022465,2]
[337225685,1725511861717,-500.0,0.00022465,2]
[337225686,1725511861729,-500.0,0.00022465,2]
[337225687,1725511861739,-500.0,0.00022465,2]
[337225688,1725511861750,-461.38660898,0.00022465,2]
[337225689,1725511861761,-500.0,0.00022465,2]
[337225690,1725511861772,-500.0,0.00022465,2]
[337225691,1725511861783,-500.0,0.00022465,2]
[337225692,1725511861795,-471.35946645,0.00022465,2]
[337225693,1725511861806,-500.0,0.00022465,2]
[337225694,1725511861817,-500.0,0.00022465,2]
[337225695,1725511861829,-500.0,0.00022465,2]
[337225696,1725511861841,-500.0,0.00022465,2]
[337225697,1725511861851,-500.0,0.00022465,2]
[337225698,1725511861862,-156.96196576,0.00022465,2]
[337225699,1725511861873,-500.0,0.00022465,2]
[337225700,1725511861887,-500.0,0.00022465,2]
[337225701,1725511861899,-500.0,0.00022465,2]
[337225702,1725511861909,-654.72,0.00022465,2]
[337225703,1725511861921,-346.03679952,0.00022465,2]
[337225704,1725511861931,-500.0,0.00022465,2]
[337225705,1725511861940,-500.0,0.00022465,2]
[337225706,1725511861950,-503.53,0.00022465,2]
[337225707,1725511861960,-1089.61,0.00022465,2]
[337225708,1725511861969,-500.0,0.00022465,2]
[337225709,1725511861978,-500.0,0.00022465,2]
[337225710,1725511861987,-632.13,0.00022465,2]
[337225711,1725511861996,-500.0,0.00022465,2]
[337225712,1725511862006,-500.0,0.00022465,2]
[337225713,1725511862015,-500.0,0.00022465,2]
[337225714,1725511862025,-578.99,0.00022465,2]
[337225715,1725511862034,-531.71902653,0.00022465,2]
[337225716,1725511862043,-500.0,0.00022465,2]
[337225717,1725511862053,-500.0,0.00022465,2]
[337225718,1725511862064,-500.0,0.00022465,2]
[337225719,1725511862074,-880.94,0.00022465,2]
[337225720,1725511862087,-500.0,0.00022465,2]
[337225721,1725511862097,-730.47,0.00022465,2]
[337225722,1725511862108,-500.0,0.00022465,2]
[337225723,1725511862118,-500.0,0.00022465,2]
[337225724,1725511862131,-500.0,0.00022465,2]
[337225725,1725511862141,-500.0,0.00022465,2]
[337225726,1725511862153,-500.0,0.00022465,2]
[337225727,1725511862165,-500.0,0.00022465,2]
[337225728,1725511862175,-500.0,0.00022465,2]
[337225729,1725511862186,-510.12818433,0.00022465,2]
[337225730,1725511862198,-500.0,0.00022465,2]
[337225731,1725511862208,-512.93,0.00022465,2]
[337225732,1725511862218,-500.0,0.00022465,2]
[337225733,1725511862227,-500.0,0.00022465,2]
[337225734,1725511862236,-500.0,0.00022465,2]
[337225735,1725511862245,-500.0,0.00022465,2]
[337225736,1725511862254,-500.0,0.00022465,2]
[337225737,1725511862264,-420.61632921,0.00022465,2]
[337225738,1725511862273,-500.0,0.00022465,2]
[337225739,1725511862283,-500.0,0.00022465,2]
[337225740,1725511862292,-983.26,0.00022465,2]
[337225741,1725511862301,-500.0,0.00022465,2]
[337225742,1725511862310,-500.0,0.00022465,2]
[337225743,1725511862319,-500.0,0.00022465,2]
[337225744,1725511862328,-500.0,0.00022465,2]
[337225745,1725511862338,-513.8597679,0.00022465,2]
[337225746,1725511862347,-500.0,0.00022465,2]
[337225747,1725511862356,-500.0,0.00022465,2]
[337225748,1725511862366,-1389.41,0.00022465,2]
[337225749,1725511862375,-270.39463925,0.00022465,2]
[337225750,1725511862385,-500.0,0.00022465,2]
[337225751,1725511862394,-943.77,0.00022465,2]
[337225752,1725511862403,-500.0,0.00022465,2]
[337225753,1725511862412,-500.0,0.00022465,2]
[337225754,1725511862421,-500.0,0.00022465,2]
[337225755,1725511862431,-500.0,0.00022465,2]
[337225756,1725511862440,-1098.5,0.00022465,2]
[337225757,1725511862450,-500.0,0.00022465,2]
[337225758,1725511862460,-500.0,0.00022465,2]
[337225759,1725511862470,-500.0,0.00022465,2]
[337225760,1725511862479,-500.0,0.00022465,2]
[337225761,1725511862489,-500.0,0.00022465,2]
[337225762,1725511862499,-500.0,0.00022465,2]
[337225763,1725511862508,-500.0,0.00022465,2]
[337225764,1725511862517,-500.0,0.00022465,2]
[337225765,1725511862527,-512.00595731,0.00022465,2]
[337225766,1725511862537,-500.0,0.00022465,2]
[337225767,1725511862547,-792.4,0.00022465,2]
[337225768,1725511862557,-500.0,0.00022465,2]
[337225769,1725511862566,-500.0,0.00022465,2]
[337225770,1725511862576,-500.0,0.00022465,2]
[337225771,1725511862585,-513.12490186,0.00022465,2]
[337225772,1725511862594,-500.0,0.00022465,2]
[337225773,1725511862603,-973.32,0.00022465,2]
[337225774,1725511862612,-500.0,0.00022465,2]
[337225775,1725511862622,-500.0,0.00022465,2]
[337225776,1725511862634,-500.0,0.00022465,2]
[337225777,1725511862643,-500.0,0.00022465,2]
[337225778,1725511862654,-500.0,0.00022465,2]
[337225779,1725511862663,-1667.17,0.00022465,2]
[337225780,1725511862672,-500.0,0.00022465,2]
[337225781,1725511862682,-595.21788853,0.00022465,2]
[337225782,1725511862691,-713.54,0.00022465,2]
[337225783,1725511862700,-500.0,0.00022465,2]
[337225784,1725511862710,-500.0,0.00022465,2]
[337225785,1725511862719,-500.0,0.00022465,2]
[337225786,1725511862729,-499.99806611,0.00022465,2]
[337225787,1725511862738,-500.0,0.00022465,2]
[337225788,1725511862747,-500.0,0.00022465,2]
[337225789,1725511862757,-500.0,0.00022465,2]
[337225790,1725511862767,-500.0,0.00022465,2]
[337225791,1725511862776,-500.0,0.00022465,2]
[337225792,1725511862785,-500.0,0.00022465,2]
[337225793,1725511862795,-500.0,0.00022465,2]
[337225794,1725511862804,-500.0,0.00022465,2]
[337225795,1725511862813,-500.0,0.00022465,2]
[337225796,1725511862822,-600.19,0.00022465,2]
[337225797,1725511862832,-1200.16,0.00022465,2]
[337225798,1725511862845,-500.0,0.00022465,2]
[337225799,1725511862855,-500.0,0.00022465,2]
[337225800,1725511862865,-547.39,0.00022465,2]
[337225801,1725511862874,-500.0,0.00022465,2]
[337225802,1725511862883,-597.91,0.00022465,2]
[337225803,1725511862893,-500.0,0.00022465,2]
[337225804,1725511862902,-500.0,0.00022465,2]
[337225805,1725511862912,-724.8,0.00022465,2]
[337225806,1725511862923,-500.0,0.00022465,2]
[337225807,1725511862936,-519.41,0.00022465,2]
[337225808,1725511862948,-500.0,0.00022465,2]
[337225809,1725511862958,-500.0,0.00022465,2]
[337225810,1725511862979,-500.0,0.00022465,2]
[337225811,1725511862989,-500.0,0.00022465,2]
[337225812,1725511863000,-1172.27,0.00022465,2]
[337225813,1725511863009,-500.0,0.00022465,2]
[337225814,1725511863019,-686.67,0.00022465,2]
[337225815,1725511863029,-610.92,0.00022465,2]
[337225816,1725511863040,-500.0,0.00022465,2]
[337225817,1725511863050,-500.0,0.00022465,2]
[337225818,1725511863059,-500.0,0.00022465,2]
[337225819,1725511863068,-500.0,0.00022465,2]
[337225820,1725511863078,-500.0,0.00022465,2]
[337225821,1725511863087,-500.0,0.00022465,2]
[337225822,1725511863096,-630.41,0.00022465,2]
[337225823,1725511863106,-500.0,0.00022465,2]
[337225824,1725511863115,-1809.8,0.00022465,2]
[337225825,1725511863124,-500.0,0.00022465,2]
[337225826,1725511863133,-500.0,0.00022465,2]
[337225827,1725511863143,-500.0,0.00022465,2]
[337225828,1725511863152,-500.0,0.00022465,2]
[337225829,1725511863162,-1723.36,0.00022465,2]
[337225830,1725511863172,-871.55,0.00022465,2]
[337225831,1725511863183,-500.0,0.00022465,2]
[337225832,1725511863194,-500.0,0.00022465,2]
[337225833,1725511863203,-615.73,0.00022465,2]
[337225834,1725511863217,-1096.16,0.00022465,2]
[337225835,1725511863227,-500.0,0.00022465,2]
[337225836,1725511863237,-500.0,0.00022465,2]
[337225837,1725511863249,-500.0,0.00022465,2]
[337225838,1725511863259,-500.0,0.00022465,2]
[337225839,1725511863270,-500.0,0.00022465,2]
[337225840,1725511863281,-1500.55,0.00022465,2]
[337225841,1725511863292,-500.0,0.00022465,2]
[337225842,1725511863302,-500.0,0.00022465,2]
[337225843,1725511863312,-500.0,0.00022465,2]
[337225844,1725511863322,-500.0,0.00022465,2]
[337225845,1725511863332,-500.0,0.00022465,2]
[337225846,1725511863342,-734.3,0.00022465,2]
[337225847,1725511863352,-500.0,0.00022465,2]
[337225848,1725511863362,-763.41,0.00022465,2]
[337225849,1725511863371,-500.0,0.00022465,2]
[337225850,1725511863382,-500.0,0.00022465,2]
[337225851,1725511863392,-963.02,0.00022465,2]
[337225852,1725511863402,-500.0,0.00022465,2]
[337225853,1725511863412,-500.0,0.00022465,2]
[337225854,1725511863421,-500.0,0.00022465,2]
[337225855,1725511863433,-500.0,0.00022465,2]
[337225856,1725511863443,-500.0,0.00022465,2]
[337225857,1725511863453,-500.0,0.00022465,2]
[337225858,1725511863467,-500.0,0.00022465,2]
[337225859,1725511863477,-500.0,0.00022465,2]
[337225860,1725511863487,-500.0,0.00022465,2]
[337225861,1725511863497,-1683.27,0.00022465,2]
[337225862,1725511863559,-1325.51,0.00022465,2]
[337225863,1725511863569,-500.0,0.00022465,2]
[337225864,1725511863578,-500.0,0.00022465,2]
[337225865,1725511863588,-1379.71,0.00022465,2]
[337225866,1725511863599,-500.0,0.00022465,2]
[337225867,1725511863608,-510.35,0.00022465,2]
[337225868,1725511863618,-500.0,0.00022465,2]
[337225869,1725511863627,-725.95,0.00022465,2]
[337225870,1725511863637,-500.0,0.00022465,2]
[337225871,1725511863646,-500.0,0.00022465,2]
[337225872,1725511863656,-454.10024338,0.00022465,2]
[337225873,1725511863666,-500.0,0.00022465,2]
[337225874,1725511863675,-988.72,0.00022465,2]
[337225875,1725511863684,-1055.41,0.00022465,2]
[337225876,1725511863693,-500.0,0.00022465,2]
[337225877,1725511863702,-1655.83,0.00022465,2]
[337225878,1725511863712,-745.97,0.00022465,2]
[337225879,1725511863722,-500.0,0.00022465,2]
[337225880,1725511863732,-500.0,0.00022465,2]
[337225881,1725511863741,-500.0,0.00022465,2]
[337225882,1725511863751,-1402.62,0.00022465,2]
[337225883,1725511863760,-509.18468099,0.00022465,2]
[337225884,1725511863770,-408.13519747,0.00022465,2]
[337225885,1725511863779,-500.0,0.00022465,2]
[337225886,1725511863789,-500.0,0.00022465,2]
[337225887,1725511863799,-500.0,0.00022465,2]
[337225888,1725511863808,-500.0,0.00022465,2]
[337225889,1725511863821,-500.0,0.00022465,2]
[337225890,1725511863830,-500.0,0.00022465,2]
[337225891,1725511863844,-668.05,0.00022465,2]
[337225892,1725511863854,-500.0,0.00022465,2]
[337225893,1725511863863,-781.84,0.00022465,2]
[337225894,1725511863872,-500.0,0.00022465,2]
[337225895,1725511863883,-500.0,0.00022465,2]
[337225896,1725511863892,-502.11,0.00022465,2]
[337225897,1725511863902,-858.62,0.00022465,2]
[337225898,1725511863911,-500.0,0.00022465,2]
[337225899,1725511863922,-701.5,0.00022465,2]
[337225900,1725511863931,-1709.97,0.00022465,2]
[337225901,1725511863940,-500.0,0.00022465,2]
[337225902,1725511863949,-500.0,0.00022465,2]
[337225903,1725511863961,-547.43,0.00022465,2]
[337225904,1725511863971,-500.0,0.00022465,2]
[337225905,1725511863980,-500.0,0.00022465,2]
[337225906,1725511863990,-1601.35,0.00022465,2]
[337225907,1725511863999,-1486.04,0.00022465,2]
[337225908,1725511864008,-500.0,0.00022465,2]
[337225909,1725511864018,-576.1,0.00022465,2]
[337225910,1725511864027,-500.0,0.00022465,2]
[337225911,1725511864037,-500.0,0.00022465,2]
[337225912,1725511864047,-555.25,0.00022465,2]
[337225913,1725511864056,-500.0,0.00022465,2]
[337225914,1725511864066,-500.0,0.00022465,2]
[337225915,1725511864075,-1062.22,0.00022465,2]
[337225916,1725511864085,-3644.86,0.00022465,2]
[337225917,1725511864094,-500.0,0.00022465,2]
[337225918,1725511864104,-457.34267231,0.00022465,2]
[337225919,1725511864113,-500.0,0.00022465,2]
[337225920,1725511864122,-500.0,0.00022465,2]
[337225921,1725511864131,-500.0,0.00022465,2]
[337225922,1725511864141,-436.39916756,0.00022465,2]
[337225923,1725511864150,-500.0,0.00022465,2]
[337225924,1725511864159,-500.0,0.00022465,2]
[337225925,1725511864168,-500.0,0.00022465,2]
[337225926,1725511864178,-516.25,0.00022465,2]
[337225927,1725511864188,-500.0,0.00022465,2]
[337225928,1725511864197,-600.47,0.00022465,2]
[337225929,1725511864207,-500.0,0.00022465,2]
[337225930,1725511864217,-500.0,0.00022465,2]
[337225931,1725511864227,-200.0,0.00022465,2]
[337225932,1725511864236,-6866.22,0.00022465,2]
[337225933,1725511864246,-500.0,0.00022465,2]
[337225934,1725511864256,-283.2096701,0.00022465,2]
[337225935,1725511864265,-170.39556611,0.00022465,2]
[337225936,1725511864274,-500.0,0.00022465,2]
[337225937,1725511864284,-500.0,0.00022465,2]
[337225938,1725511864293,-500.0,0.00022465,2]
[337225939,1725511864302,-9015.3,0.00022465,2]
[337225940,1725511864312,-500.0,0.00022465,2]
[337225941,1725511864321,-414.84462669,0.00022465,2]
[337225942,1725511864330,-500.0,0.00022465,2]
[337225943,1725511864339,-500.0,0.00022465,2]
[337225944,1725511864348,-611.77275576,0.00022465,2]
[337225945,1725511864358,-958.48,0.00022465,2]
[337225946,1725511864368,-500.0,0.00022465,2]
[337225947,1725511864378,-500.0,0.00022465,2]
[337225948,1725511864388,-500.0,0.00022465,2]
[337225949,1725511864399,-500.0,0.00022465,2]
[337225950,1725511864408,-1463.1,0.00022465,2]
[337225951,1725511864417,-500.0,0.00022465,2]
[337225952,1725511864428,-500.0,0.00022465,2]
[337225953,1725511864438,-500.0,0.00022465,2]
[337225954,1725511864447,-508.89806691,0.00022465,2]
[337225955,1725511864456,-500.0,0.00022465,2]
[337225956,1725511864467,-500.0,0.00022465,2]
[337225957,1725511864477,-542.78,0.00022465,2]
[337225958,1725511864486,-2059.37,0.00022465,2]
[337225959,1725511864495,-500.0,0.00022465,2]
[337225960,1725511864504,-500.0,0.00022465,2]
[337225961,1725511864513,-504.37104764,0.00022465,2]
[337225962,1725511864523,-585.78,0.00022465,2]
[337225963,1725511864532,-1334.01,0.00022465,2]
[337225964,1725511864542,-500.0,0.00022465,2]
[337225965,1725511864551,-500.0,0.00022465,2]
[337225966,1725511864560,-973.56,0.00022465,2]
[337225967,1725511864569,-655.28,0.00022465,2]
[337225968,1725511864579,-500.0,0.00022465,2]
[337225969,1725511864588,-500.0,0.00022465,2]
[337225970,1725511864597,-509.8,0.00022465,2]
[337225971,1725511864606,-500.0,0.00022465,2]
[337225972,1725511864615,-500.0,0.00022465,2]
[337225973,1725511864624,-1262.17,0.00022465,2]
[337225974,1725511864634,-500.0,0.00022465,2]
[337225975,1725511864645,-515.55747049,0.00022465,2]
[337225976,1725511864654,-500.0,0.00022465,2]
[337225977,1725511864663,-500.0,0.00022465,2]
[337225978,1725511864673,-500.0,0.00022465,2]
[337225979,1725511864682,-930.09,0.00022465,2]
[337225980,1725511864692,-500.0,0.00022465,2]
[337225981,1725511864701,-4605.84,0.00022465,2]
[337225982,1725511864712,-4539.58,0.00022465,2]
[337225983,1725511864721,-500.0,0.00022465,2]
[337225984,1725511864730,-500.0,0.00022465,2]
[337225985,1725511864739,-500.0,0.00022465,2]
[337225986,1725511864748,-516.69,0.00022465,2]
[337225987,1725511864758,-520.73,0.00022465,2]
[337225988,1725511864767,-8665.42,0.00022465,2]
[337225989,1725511864777,-1868.7,0.00022465,2]
[337225990,1725511864786,-500.0,0.00022465,2]
[337225991,1725511864795,-500.0,0.00022465,2]
[337225992,1725511864804,-587.82981552,0.00022465,2]
[337225993,1725511864813,-1198.72,0.00022465,2]
[337225994,1725511864822,-500.0,0.00022465,2]
[337225995,1725511864831,-503.03867623,0.00022465,2]
[337225996,1725511864844,-1631.2,0.00022465,2]
[337225997,1725511864853,-795.56,0.00022465,2]
[337225998,1725511864862,-500.0,0.00022465,2]
[337225999,1725511864871,-500.0,0.00022465,2]
[337226000,1725511864880,-500.0,0.00022465,2]
[337226001,1725511864890,-197.41236019,0.00022465,2]
[337226002,1725511864898,-1254.34,0.00022465,2]
[337226003,1725511864908,-500.0,0.00022465,2]
[337226004,1725511864917,-491.06332831,0.00022465,2]
[337226005,1725511864926,-797.81,0.00022465,2]
[337226006,1725511864935,-500.0,0.00022465,2]
[337226007,1725511864944,-500.0,0.00022465,2]
[337226008,1725511864953,-651.56,0.00022465,2]
[337226009,1725511864963,-500.0,0.00022465,2]
[337226010,1725511864972,-500.0,0.00022465,2]
[337226011,1725511864982,-500.0,0.00022465,2]
[337226012,1725511864992,-1469.69,0.00022465,2]
[337226013,1725511865003,-4846.51,0.00022465,2]
[337226014,1725511865014,-1164.21,0.00022465,2]
[337226015,1725511865026,-500.0,0.00022465,2]
[337226016,1725511865037,-500.0,0.00022465,2]
[337226017,1725511865046,-719.01,0.00022465,2]
[337226018,1725511865056,-500.0,0.00022465,2]
[337226019,1725511865066,-643.35,0.00022465,2]
[337226020,1725511865076,-1125.72,0.00022465,2]
[337226021,1725511865085,-500.0,0.00022465,2]
[337226022,1725511865094,-500.0,0.00022465,2]
[337226023,1725511865103,-500.0,0.00022465,2]
[337226024,1725511865112,-500.0,0.00022465,2]
[337226025,1725511865121,-500.0,0.00022465,2]
[337226026,1725511865129,-500.0,0.00022465,2]
[337226027,1725511865139,-832.64,0.00022465,2]
[337226028,1725511865147,-500.0,0.00022465,2]
[337226029,1725511865156,-627.66,0.00022465,2]
[337226030,1725511865166,-500.0,0.00022465,2]
[337226031,1725511865175,-500.0,0.00022465,2]
[337226032,1725511865185,-3434.58,0.00022465,2]
[337226033,1725511865194,-1942.98,0.00022465,2]
[337226034,1725511865205,-1071.36,0.00022465,2]
[337226035,1725511865215,-500.0,0.00022465,2]
[337226036,1725511865224,-655.83,0.00022465,2]
[337226037,1725511865233,-8321.17,0.00022465,2]
[337226038,1725511865242,-885.87,0.00022465,2]
[337226039,1725511865252,-500.0,0.00022465,2]
[337226040,1725511865262,-500.0,0.00022465,2]
[337226041,1725511865271,-500.0,0.00022465,2]
[337226042,1725511865281,-500.0,0.00022465,2]
[337226043,1725511865291,-500.0,0.00022465,2]
[337226044,1725511865300,-549.9,0.00022465,2]
[337226045,1725511865310,-3266.09,0.00022465,2]
[337226046,1725511865319,-1019.58,0.00022465,2]
[337226047,1725511865328,-500.0,0.00022465,2]
[337226048,1725511865337,-1155.63,0.00022465,2]
[337226049,1725511865346,-500.0,0.00022465,2]
[337226050,1725511865355,-484.81359411,0.00022465,2]
[337226051,1725511865364,-500.0,0.00022465,2]
[337226052,1725511865373,-500.0,0.00022465,2]
[337226053,1725511865382,-592.81,0.00022465,2]
[337226054,1725511865392,-6270.83,0.00022465,2]
[337226055,1725511865401,-1206.16,0.00022465,2]
[337226056,1725511865411,-500.0,0.00022465,2]
[337226057,1725511865420,-1027.87,0.00022465,2]
[337226058,1725511865429,-545.65,0.00022465,2]
[337226059,1725511865439,-500.0,0.00022465,2]
[337226060,1725511865448,-213.12944536,0.00022465,2]
[337226061,1725511865457,-1061.8,0.00022465,2]
[337226062,1725511865468,-1461.46,0.00022465,2]
[337226063,1725511865477,-500.0,0.00022465,2]
[337226064,1725511865487,-500.0,0.00022465,2]
[337226065,1725511865497,-500.0,0.00022465,2]
[337226066,1725511865506,-500.0,0.00022465,2]
[337226067,1725511865516,-649.79,0.00022465,2]
[337226068,1725511865525,-500.0,0.00022465,2]
[337226069,1725511865534,-1532.78,0.00022465,2]
[337226070,1725511865543,-500.0,0.00022465,2]
[337226071,1725511865553,-1486.29,0.00022465,2]
[337226072,1725511865562,-607.1,0.00022465,2]
[337226073,1725511865572,-565.43,0.00022465,2]
[337226074,1725511865582,-500.0,0.00022465,2]
[337226075,1725511865593,-551.21,0.00022465,2]
[337226076,1725511865603,-500.0,0.00022465,2]
[337226077,1725511865612,-500.0,0.00022465,2]
[337226078,1725511865623,-500.0,0.00022465,2]
[337226079,1725511865635,-643.27,0.00022465,2]
[337226080,1725511865644,-1465.46,0.00022465,2]
[337226081,1725511865654,-1061.13,0.00022465,2]
[337226082,1725511865665,-1517.06,0.00022465,2]
[337226083,1725511865676,-7317.01,0.00022465,2]
[337226084,1725511865687,-500.0,0.00022465,2]
[337226085,1725511865696,-1174.12,0.00022465,2]
[337226086,1725511865707,-16122.26,0.00022465,2]
[337226087,1725511865718,-500.0,0.00022465,2]
[337226088,1725511865729,-500.0,0.00022465,2]
[337226089,1725511865739,-820.94,0.00022465,2]
[337226090,1725511865749,-500.0,0.00022465,2]
[337226091,1725511865759,-1659.05,0.00022465,2]
[337226092,1725511865769,-500.05,0.00022465,2]
[337226093,1725511865778,-500.0,0.00022465,2]
[337226094,1725511865788,-724.83,0.00022465,2]
[337226095,1725511865798,-612.73,0.00022465,2]
[337226096,1725511865808,-500.0,0.00022465,2]
[337226097,1725511865820,-13958.5,0.00022465,2]
[337226098,1725511865830,-500.0,0.00022465,2]
[337226099,1725511865845,-2897.311599,0.00022465,7]